[Event "Masterklassen 2025"]
[Site "Uppsala, Sweden"]
[Date "2025.07.01"]
[Round "4.16"]
[White "Ask, Josef"]
[Black "Johansson, William"]
[Result "1/2-1/2"]
[TimeControl "90 min for 40 move + 30 min with an increment of 30 sec starting move 1"]
[WhiteTitle "FM"]
[WhiteFideId "1704583"]
[BlackFideId "1744070"]
[WhiteElo "2121"]
[BlackElo "2026"]

1. b3 {[%clk 01:30:43]} {[%emt 00:00:16]} b6 {[%clk 01:26:30]} {[%emt
00:04:30]} 2. Bb2 {[%clk 01:30:57]} {[%emt 00:00:17]} Bb7 {[%clk 01:26:44]}
{[%emt 00:00:15]} 3. e3 {[%clk 01:30:54]} {[%emt 00:00:33]} e6 {[%clk
01:26:07]} {[%emt 00:01:07]} 4. Nh3 {[%clk 01:30:23]} {[%emt 00:01:01]} c5
{[%clk 01:24:01]} {[%emt 00:02:36]} 5. Nf4 {[%clk 01:29:59]} {[%emt 00:00:54]}
Nf6 {[%clk 01:22:22]} {[%emt 00:02:08]} 6. h4 {[%clk 01:28:34]} {[%emt
00:01:56]} Nc6 {[%clk 01:21:12]} {[%emt 00:01:40]} 7. Na3 {[%clk 01:25:58]}
{[%emt 00:03:06]} e5 {[%clk 01:19:07]} {[%emt 00:02:34]} 8. Nh5 {[%clk
01:21:14]} {[%emt 00:05:14]} Nxh5 {[%clk 01:18:17]} {[%emt 00:01:21]} 9. Qxh5
{[%clk 01:21:40]} {[%emt 00:00:04]} g6 {[%clk 01:18:32]} {[%emt 00:00:15]} 10.
Qf3 {[%clk 01:19:35]} {[%emt 00:02:34]} Qe7 {[%clk 01:00:38]} {[%emt 00:18:25]}
11. Bc4 {[%clk 01:07:35]} {[%emt 00:12:30]} a6 {[%clk 00:50:56]} {[%emt
00:10:11]} 12. Bd5 {[%clk 00:59:54]} {[%emt 00:08:11]} b5 {[%clk 00:48:27]}
{[%emt 00:03:00]} 13. h5 {[%clk 00:57:44]} {[%emt 00:02:40]} Bg7 {[%clk
00:43:30]} {[%emt 00:05:26]} 14. O-O-O {[%clk 00:57:15]} {[%emt 00:00:59]}
O-O-O {[%clk 00:38:35]} {[%emt 00:05:26]} 15. h6 {[%clk 00:55:25]} {[%emt
00:02:20]} Bf6 {[%clk 00:35:25]} {[%emt 00:03:39]} 16. c4 {[%clk 00:55:09]}
{[%emt 00:00:47]} b4 {[%clk 00:34:34]} {[%emt 00:01:21]} 17. Nc2 {[%clk
00:55:18]} {[%emt 00:00:20]} Rhe8 {[%clk 00:30:48]} {[%emt 00:04:16]} 18. Rdf1
{[%clk 00:53:26]} {[%emt 00:02:22]} Rf8 {[%clk 00:28:26]} {[%emt 00:02:52]} 19.
g4 {[%clk 00:47:39]} {[%emt 00:06:18]} Bh8 {[%clk 00:27:54]} {[%emt 00:01:02]}
20. Rhg1 {[%clk 00:46:47]} {[%emt 00:01:22]} Kb8 {[%clk 00:17:37]} {[%emt
00:10:47]} 21. g5 {[%clk 00:45:18]} {[%emt 00:01:59]} Ka7 {[%clk 00:15:17]}
{[%emt 00:02:51]} 22. Qe4 {[%clk 00:44:04]} {[%emt 00:01:44]} f5 {[%clk
00:12:41]} {[%emt 00:03:06]} 23. gxf6 {[%clk 00:44:21]} {[%emt 00:00:13]} Bxf6
{[%clk 00:12:52]} {[%emt 00:00:19]} 24. Ne1 {[%clk 00:41:24]} {[%emt 00:03:26]}
Rc8 {[%clk 00:10:06]} {[%emt 00:03:16]} 25. Nd3 {[%clk 00:40:57]} {[%emt
00:00:57]} d6 {[%clk 00:09:33]} {[%emt 00:01:03]} 26. Rg4 {[%clk 00:35:59]}
{[%emt 00:05:28]} Rc7 {[%clk 00:05:16]} {[%emt 00:04:47]} 27. Rfg1 {[%clk
00:34:31]} {[%emt 00:01:58]} Qe8 {[%emt 00:03:08]} 28. f4 {[%clk 00:23:13]}
{[%emt 00:11:46]} Re7 {[%clk 00:02:41]} {[%emt 00:00:28]} 29. f5 {[%clk
00:18:37]} {[%emt 00:05:07]} gxf5 {[%clk 00:02:52]} {[%emt 00:00:19]} 30. Qxf5
{[%clk 00:18:35]} {[%emt 00:00:31]} Bc8 {[%clk 00:02:35]} {[%emt 00:00:47]} 31.
Qe4 {[%clk 00:18:45]} {[%emt 00:00:20]} Bxg4 {[%clk 00:01:26]} {[%emt
00:01:40]} 32. Rxg4 {[%clk 00:17:20]} {[%emt 00:01:55]} Rc7 {[%clk 00:01:12]}
{[%emt 00:00:43]} 33. a3 {[%clk 00:14:27]} {[%emt 00:03:22]} a5 {[%clk
00:01:19]} {[%emt 00:00:26]} 34. axb4 {[%clk 00:13:35]} {[%emt 00:01:20]} axb4
{[%clk 00:01:43]} {[%emt 00:00:07]} 35. Kc2 {[%clk 00:13:38]} {[%emt 00:00:28]}
Ne7 {[%clk 00:01:29]} {[%emt 00:00:43]} 36. Rg1 {[%clk 00:13:21]} {[%emt
00:00:47]} Nxd5 {[%clk 00:01:24]} {[%emt 00:00:36]} 37. Ra1+ {[%clk 00:11:07]}
{[%emt 00:02:42]} Kb6 {[%clk 00:01:39]} {[%emt 00:00:16]} 38. Qxd5 {[%clk
00:07:03]} {[%emt 00:04:34]} Qc6 {[%clk 00:00:36]} {[%emt 00:01:33]} 39. Nxb4
{[%clk 00:05:18]} {[%emt 00:02:15]} cxb4 {[%clk 00:01:00]} {[%emt 00:00:06]} 40.
Qa5+ {[%clk 00:05:31]} {[%emt 00:00:17]} Kb7 {[%clk 00:01:26]} {[%emt
00:00:05]} 41. Qa7+ {[%clk 00:04:22]} {[%emt 00:01:38]} Kc8 {[%clk 00:01:51]}
{[%emt 00:00:05]} 42. Qa8+ {[%clk 00:04:45]} {[%emt 00:00:07]} Kd7 {[%clk
00:22:34]} {[%emt 00:09:47]} 43. Qxf8 {[%clk 00:34:58]} {[%emt 00:00:17]} Qe4+
{[%clk 00:22:57]} {[%emt 00:00:07]} 44. Kd1 {[%clk 00:30:43]} {[%emt 00:04:46]}
Qf3+ {[%clk 00:22:40]} {[%emt 00:00:46]} 45. Kc1 {[%clk 00:29:34]} {[%emt
00:01:39]} Qh1+ {[%clk 00:22:01]} {[%emt 00:01:07]} 46. Kc2 {[%clk 00:29:56]}
{[%emt 00:00:10]} Qe4+ {[%clk 00:22:20]} {[%emt 00:00:11]} 47. Kd1 {[%clk
00:27:45]} {[%emt 00:02:41]} Qf3+ {[%clk 00:22:34]} {[%emt 00:00:15]} 48. Kc2
{[%clk 00:25:24]} {[%emt 00:02:51]} Qe4+ {[%clk 00:21:19]} {[%emt 00:01:46]} 49.
Kc1 {[%clk 00:25:19]} {[%emt 00:00:35]} Qh1+ {[%clk 00:16:52]} {[%emt
00:04:57]} 50. Kc2 {[%clk 00:25:35]} {[%emt 00:00:14]} Qe4+ {[%clk 00:17:11]}
{[%emt 00:00:11]} 1/2-1/2

[Event "Masterklassen 2025"]
[Site "Uppsala, Sweden"]
[Date "2025.07.02"]
[Round "5.1"]
[White "Cederstam, Carl"]
[Black "Hammarstrom, Ulf"]
[Result "1/2-1/2"]
[TimeControl "90 min for 40 move + 30 min with an increment of 30 sec starting move 1"]
[WhiteTitle "FM"]
[WhiteFideId "1713329"]
[BlackFideId "1710214"]
[WhiteElo "2316"]
[BlackElo "2176"]

1. e4 {[%clk 01:30:59]} c5 {[%clk 01:20:39]} {[%emt 00:10:21]} 2. Nf3 {[%clk
01:30:56]} {[%emt 00:00:33]} d6 {[%clk 01:20:23]} {[%emt 00:00:46]} 3. d4
{[%clk 01:30:37]} {[%emt 00:00:49]} cxd4 {[%clk 01:20:47]} {[%emt 00:00:07]} 4.
Nxd4 {[%clk 01:31:02]} {[%emt 00:00:04]} Nf6 {[%clk 01:21:08]} {[%emt
00:00:09]} 5. Nc3 {[%clk 01:31:27]} {[%emt 00:00:05]} Nc6 {[%clk 01:20:35]}
{[%emt 00:01:03]} 6. Bg5 {[%clk 01:31:30]} {[%emt 00:00:26]} g6 {[%clk
01:20:36]} {[%emt 00:00:30]} 7. Bxf6 {[%clk 01:30:05]} {[%emt 00:01:56]} exf6
{[%clk 01:20:12]} {[%emt 00:00:54]} 8. Bc4 {[%clk 01:25:16]} {[%emt 00:05:17]}
Bg7 {[%clk 01:20:05]} {[%emt 00:00:39]} 9. Ndb5 {[%clk 01:12:39]} {[%emt
00:13:06]} O-O {[%clk 01:20:11]} {[%emt 00:00:23]} 10. O-O {[%clk 01:11:41]}
{[%emt 00:01:28]} f5 {[%clk 01:08:26]} {[%emt 00:12:16]} 11. exf5 {[%clk
00:56:47]} {[%emt 00:15:24]} Bxf5 {[%clk 01:07:52]} {[%emt 00:01:04]} 12. Nxd6
{[%clk 00:56:16]} {[%emt 00:01:01]} Bxc3 {[%clk 01:06:18]} {[%emt 00:02:04]} 13.
Nxf5 {[%clk 00:40:16]} {[%emt 00:16:31]} Bxb2 {[%clk 00:53:35]} {[%emt
00:13:13]} 14. Rb1 {[%clk 00:40:02]} {[%emt 00:00:43]} gxf5 {[%clk 00:37:56]}
{[%emt 00:16:10]} 15. Rxb2 {[%clk 00:39:00]} {[%emt 00:01:32]} Qxd1 {[%clk
00:37:37]} {[%emt 00:00:48]} 16. Rxd1 {[%clk 00:35:22]} {[%emt 00:04:08]} Rad8
{[%clk 00:37:32]} {[%emt 00:00:35]} 17. Bd3 {[%clk 00:26:25]} {[%emt 00:09:26]}
b6 {[%clk 00:32:44]} {[%emt 00:05:19]} 18. Rbb1 {[%clk 00:11:47]} {[%emt
00:15:07]} Rd5 {[%clk 00:31:37]} {[%emt 00:01:38]} 19. Bc4 {[%clk 00:05:37]}
{[%emt 00:06:39]} Rc5 {[%clk 00:30:47]} {[%emt 00:01:21]} 20. Bb3 {[%clk
00:06:06]} {[%emt 00:00:02]} Na5 {[%clk 00:29:04]} {[%emt 00:02:12]} 21. Rd7
{[%clk 00:04:58]} {[%emt 00:01:37]} Nxb3 {[%clk 00:27:11]} {[%emt 00:02:24]} 22.
cxb3 {[%clk 00:05:20]} {[%emt 00:00:08]} Rfc8 {[%clk 00:25:49]} {[%emt
00:01:51]} 23. g3 {[%clk 00:05:32]} {[%emt 00:00:18]} R8c7 {[%clk 00:18:53]}
{[%emt 00:07:28]} 24. Rbd1 {[%clk 00:04:56]} {[%emt 00:01:05]} Kg7 {[%clk
00:14:31]} {[%emt 00:04:51]} 25. Kg2 {[%clk 00:04:14]} {[%emt 00:01:12]} Rxd7
{[%clk 00:13:06]} {[%emt 00:01:56]} 26. Rxd7 {[%clk 00:04:43]} a5 {[%clk
00:08:47]} {[%emt 00:04:49]} 27. Rd6 {[%clk 00:04:35]} {[%emt 00:00:38]} Rb5
{[%clk 00:07:35]} {[%emt 00:01:42]} 28. h4 {[%clk 00:01:17]} {[%emt 00:03:48]}
Rb4 {[%clk 00:07:05]} {[%emt 00:01:00]} 29. Kf3 {[%clk 00:00:55]} {[%emt
00:00:52]} a4 {[%clk 00:06:10]} {[%emt 00:01:25]} 30. bxa4 {[%clk 00:01:05]}
{[%emt 00:00:20]} Rxa4 {[%clk 00:06:29]} {[%emt 00:00:11]} 31. Rd2 {[%clk
00:01:00]} {[%emt 00:00:34]} Kf6 {[%clk 00:04:33]} {[%emt 00:02:26]} 32. Rb2
{[%clk 00:01:29]} {[%emt 00:00:02]} b5 {[%clk 00:04:00]} {[%emt 00:01:04]} 33.
Rxb5 {[%clk 00:01:07]} {[%emt 00:00:52]} Ra3+ {[%clk 00:03:16]} {[%emt
00:01:14]} 34. Kf4 {[%clk 00:01:31]} {[%emt 00:00:04]} Ra4+ {[%clk 00:03:41]}
{[%emt 00:00:06]} 35. Kf3 {[%clk 00:02:00]} Ra3+ {[%clk 00:03:59]} {[%emt
00:00:12]} 36. Rb3 {[%clk 00:02:16]} {[%emt 00:00:14]} Rxa2 {[%clk 00:04:23]}
{[%emt 00:00:06]} 37. Rb6+ {[%clk 00:02:32]} {[%emt 00:00:14]} Kg7 {[%clk
00:04:42]} {[%emt 00:00:11]} 38. h5 {[%clk 00:01:51]} {[%emt 00:01:11]} h6
{[%clk 00:04:55]} {[%emt 00:00:17]} 39. Ke3 {[%clk 00:00:51]} {[%emt 00:01:29]}
Ra1 {[%clk 00:04:12]} {[%emt 00:01:14]} 40. Kf4 {[%clk 00:00:44]} {[%emt
00:00:37]} Rh1 {[%clk 00:04:07]} {[%emt 00:00:34]} 41. Kxf5 {[%clk 00:01:03]}
{[%emt 00:00:12]} Rxh5+ {[%clk 00:04:28]} {[%emt 00:00:09]} 42. Ke4 {[%clk
00:00:55]} {[%emt 00:00:36]} Ra5 {[%clk 00:04:42]} {[%emt 00:00:17]} 43. Rd6
{[%clk 00:00:35]} {[%emt 00:00:50]} Ra2 {[%clk 00:03:46]} {[%emt 00:01:27]} 44.
f3 {[%clk 00:00:39]} {[%emt 00:00:25]} Ra4+ {[%clk 00:00:41]} {[%emt 00:03:36]}
45. Ke3 {[%clk 00:00:34]} {[%emt 00:00:35]} Ra3+ {[%clk 00:01:00]} {[%emt
00:00:12]} 46. Ke4 {[%clk 00:00:59]} {[%emt 00:00:03]} Ra4+ {[%clk 00:01:17]}
{[%emt 00:00:14]} 47. Ke3 {[%clk 00:01:25]} {[%emt 00:00:04]} Ra3+ {[%clk
00:01:27]} {[%emt 00:00:20]} 48. Ke4 {[%clk 00:01:52]} {[%emt 00:00:02]}
1/2-1/2

[Event "Masterklassen 2025"]
[Site "Uppsala, Sweden"]
[Date "2025.07.02"]
[Round "5.2"]
[White "Muntean, Victor"]
[Black "Crevatin, Leo"]
[Result "0-1"]
[TimeControl "90 min for 40 move + 30 min with an increment of 30 sec starting move 1"]
[BlackTitle "FM"]
[WhiteFideId "1054414"]
[BlackFideId "1726307"]
[WhiteElo "2140"]
[BlackElo "2248"]

1. e4 {[%clk 01:30:59]} {[%emt 00:00:01]} c6 {[%clk 01:30:59]} {[%emt
00:00:01]} 2. Nf3 {[%clk 01:31:18]} {[%emt 00:00:11]} d5 {[%clk 01:31:17]}
{[%emt 00:00:11]} 3. exd5 {[%clk 01:31:43]} {[%emt 00:00:06]} cxd5 {[%clk
01:31:34]} {[%emt 00:00:13]} 4. Ne5 {[%clk 01:32:08]} {[%emt 00:00:05]} a6
{[%clk 01:31:22]} {[%emt 00:00:42]} 5. d4 {[%clk 01:32:05]} {[%emt 00:00:33]}
Nc6 {[%clk 01:31:42]} {[%emt 00:00:10]} 6. c3 {[%clk 01:31:13]} {[%emt
00:01:22]} Nxe5 {[%clk 01:28:59]} {[%emt 00:03:13]} 7. dxe5 {[%clk 01:31:34]}
{[%emt 00:00:08]} Bf5 {[%clk 01:28:49]} {[%emt 00:00:39]} 8. Nd2 {[%clk
01:24:48]} {[%emt 00:07:17]} e6 {[%clk 01:23:46]} {[%emt 00:05:33]} 9. Nb3
{[%clk 01:21:19]} {[%emt 00:03:59]} Bg6 {[%clk 01:19:21]} {[%emt 00:04:55]} 10.
Nd4 {[%clk 01:16:31]} {[%emt 00:05:19]} Qd7 {[%clk 01:19:05]} {[%emt 00:00:46]}
11. h4 {[%clk 01:14:45]} {[%emt 00:02:16]} h6 {[%clk 01:19:20]} {[%emt
00:00:14]} 12. h5 {[%clk 01:01:33]} {[%emt 00:13:43]} Bh7 {[%clk 01:17:37]}
{[%emt 00:02:12]} 13. Be3 {[%clk 00:56:33]} {[%emt 00:05:30]} Rc8 {[%clk
01:13:04]} {[%emt 00:05:04]} 14. g4 {[%clk 00:50:18]} {[%emt 00:06:45]} Bc5
{[%clk 01:09:57]} {[%emt 00:03:36]} 15. Rg1 {[%clk 00:42:26]} {[%emt 00:08:22]}
Ne7 {[%clk 01:03:23]} {[%emt 00:07:04]} 16. Bh3 {[%clk 00:40:45]} {[%emt
00:02:12]} Nc6 {[%clk 00:56:10]} {[%emt 00:07:43]} 17. g5 {[%clk 00:37:05]}
{[%emt 00:04:10]} Bxd4 {[%clk 00:39:06]} {[%emt 00:17:33]} 18. Bxd4 {[%clk
00:35:58]} {[%emt 00:01:37]} Nxd4 {[%clk 00:32:43]} {[%emt 00:06:53]} 19. cxd4
{[%clk 00:36:05]} {[%emt 00:00:24]} hxg5 {[%clk 00:31:51]} {[%emt 00:01:22]} 20.
Rxg5 {[%clk 00:32:56]} {[%emt 00:03:39]} Qe7 {[%clk 00:28:11]} {[%emt
00:04:09]} 21. Rxg7 {[%clk 00:23:38]} {[%emt 00:09:49]} Qb4+ {[%clk 00:27:47]}
{[%emt 00:00:54]} 22. Qd2 {[%clk 00:22:38]} {[%emt 00:01:29]} Qxd2+ {[%clk
00:25:48]} {[%emt 00:02:29]} 23. Kxd2 {[%clk 00:23:03]} {[%emt 00:00:05]} Rc2+
{[%clk 00:26:00]} {[%emt 00:00:18]} 24. Ke3 {[%clk 00:21:41]} {[%emt 00:01:53]}
Rxb2 {[%clk 00:25:37]} {[%emt 00:00:54]} 25. Rc1 {[%clk 00:20:32]} {[%emt
00:01:38]} Bc2 {[%clk 00:19:32]} {[%emt 00:06:34]} 26. Rg2 {[%clk 00:17:55]}
{[%emt 00:03:08]} Kd7 {[%clk 00:18:13]} {[%emt 00:01:49]} 27. f3 {[%clk
00:17:58]} {[%emt 00:00:27]} Rc8 {[%clk 00:18:26]} {[%emt 00:00:18]} 28. h6
{[%clk 00:14:25]} {[%emt 00:04:02]} Rxa2 {[%clk 00:18:29]} {[%emt 00:00:27]} 29.
Rg7 {[%clk 00:14:02]} {[%emt 00:00:53]} Ke7 {[%clk 00:15:07]} {[%emt 00:03:51]}
30. Bf1 {[%clk 00:07:57]} {[%emt 00:06:35]} Ra3+ {[%clk 00:10:39]} {[%emt
00:04:58]} 31. Kf4 {[%clk 00:07:42]} {[%emt 00:00:45]} Rxf3+ {[%clk 00:10:13]}
{[%emt 00:00:57]} 32. Kxf3 {[%clk 00:07:29]} {[%emt 00:00:43]} Be4+ {[%clk
00:10:42]} 33. Kf2 {[%clk 00:07:22]} {[%emt 00:00:37]} Rxc1 {[%clk 00:11:05]}
{[%emt 00:00:07]} 34. h7 {[%clk 00:07:39]} {[%emt 00:00:13]} Rc8 {[%clk
00:10:34]} {[%emt 00:01:01]} 35. Be2 {[%clk 00:05:13]} {[%emt 00:02:56]} Rh8
{[%clk 00:10:36]} {[%emt 00:00:27]} 36. Rg8 {[%clk 00:05:38]} {[%emt 00:00:06]}
Rxh7 {[%clk 00:10:59]} {[%emt 00:00:07]} 37. Rb8 {[%clk 00:05:51]} {[%emt
00:00:16]} Rh2+ {[%clk 00:09:26]} {[%emt 00:02:02]} 38. Ke3 {[%clk 00:06:17]}
{[%emt 00:00:05]} Rh3+ {[%clk 00:07:43]} {[%emt 00:02:13]} 39. Kf4 {[%clk
00:06:32]} {[%emt 00:00:15]} Rb3 {[%clk 00:07:37]} {[%emt 00:00:36]} 40. Kg5
{[%clk 00:05:05]} {[%emt 00:01:58]} Rb1 {[%clk 00:02:39]} {[%emt 00:05:28]} 41.
Kf4 {[%clk 00:04:31]} {[%emt 00:01:03]} Bg6 {[%clk 00:28:13]} {[%emt 00:04:56]}
42. Kg5 {[%clk 00:32:38]} {[%emt 00:02:24]} Rb2 {[%clk 00:23:59]} {[%emt
00:04:43]} 43. Bf1 {[%clk 00:32:22]} {[%emt 00:00:47]} Kd7 {[%clk 00:23:07]}
{[%emt 00:01:22]} 0-1

[Event "Masterklassen 2025"]
[Site "Uppsala, Sweden"]
[Date "2025.07.02"]
[Round "5.3"]
[White "Eriksson, Jorgen"]
[Black "Hagevi, Vidar"]
[Result "1/2-1/2"]
[TimeControl "90 min for 40 move + 30 min with an increment of 30 sec starting move 1"]
[WhiteFideId "1701967"]
[BlackFideId "1767526"]
[WhiteElo "2160"]
[BlackElo "2139"]

1. d4 {[%clk 01:30:42]} {[%emt 00:00:13]} d5 {[%clk 01:30:50]} {[%emt
00:00:14]} 2. Bf4 {[%clk 01:27:30]} {[%emt 00:03:42]} Nf6 {[%clk 01:30:58]}
{[%emt 00:00:22]} 3. e3 {[%clk 01:27:29]} {[%emt 00:00:32]} e6 {[%clk
01:31:18]} {[%emt 00:00:09]} 4. Nd2 {[%clk 01:27:01]} {[%emt 00:00:58]} Bd6
{[%clk 01:31:11]} {[%emt 00:00:38]} 5. Ngf3 {[%clk 01:26:04]} {[%emt 00:01:27]}
O-O {[%clk 01:28:51]} {[%emt 00:02:50]} 6. Bd3 {[%clk 01:23:16]} {[%emt
00:03:17]} c5 {[%clk 01:28:18]} {[%emt 00:01:02]} 7. Bg3 {[%clk 01:11:56]}
{[%emt 00:11:51]} Qc7 {[%clk 01:27:01]} {[%emt 00:01:47]} 8. dxc5 {[%clk
01:06:09]} {[%emt 00:06:18]} Qxc5 {[%clk 01:22:03]} {[%emt 00:05:28]} 9. c4
{[%clk 00:55:26]} {[%emt 00:11:13]} Nc6 {[%clk 01:02:36]} {[%emt 00:19:56]} 10.
a3 {[%clk 00:46:23]} {[%emt 00:09:34]} Bxg3 {[%clk 00:40:05]} {[%emt 00:23:01]}
11. hxg3 {[%clk 00:46:12]} {[%emt 00:00:41]} dxc4 {[%clk 00:39:35]} {[%emt
00:01:00]} 12. Qc2 {[%clk 00:36:15]} {[%emt 00:10:27]} h6 {[%clk 00:35:43]}
{[%emt 00:04:20]} 13. b4 {[%clk 00:34:28]} {[%emt 00:02:18]} Qe7 {[%clk
00:28:28]} {[%emt 00:07:45]} 14. Bxc4 {[%clk 00:20:37]} {[%emt 00:14:22]} e5
{[%clk 00:25:11]} {[%emt 00:03:47]} 15. Ne4 {[%clk 00:07:44]} {[%emt 00:13:23]}
Bf5 {[%clk 00:22:01]} {[%emt 00:03:39]} 16. Nxf6+ {[%clk 00:07:50]} {[%emt
00:00:25]} Qxf6 {[%clk 00:22:06]} {[%emt 00:00:25]} 17. Qb2 {[%clk 00:07:10]}
{[%emt 00:01:09]} Be4 {[%clk 00:17:02]} {[%emt 00:05:33]} 18. Be2 {[%clk
00:07:15]} {[%emt 00:00:26]} Rfe8 {[%clk 00:12:37]} {[%emt 00:04:55]} 19. O-O
{[%clk 00:07:25]} {[%emt 00:00:20]} Rad8 {[%clk 00:11:57]} {[%emt 00:01:10]} 20.
Rfd1 {[%clk 00:07:31]} {[%emt 00:00:24]} Bf5 {[%clk 00:08:18]} {[%emt
00:04:09]} 21. Rxd8 {[%clk 00:06:59]} {[%emt 00:01:03]} Nxd8 {[%clk 00:08:20]}
{[%emt 00:00:26]} 22. Rd1 {[%clk 00:06:48]} {[%emt 00:00:43]} Bg4 {[%clk
00:07:51]} {[%emt 00:00:58]} 23. Rd2 {[%clk 00:04:46]} {[%emt 00:02:33]} Nc6
{[%clk 00:07:12]} {[%emt 00:01:08]} 24. Qc3 {[%clk 00:04:45]} {[%emt 00:00:32]}
a6 {[%clk 00:05:29]} {[%emt 00:02:13]} 25. a4 {[%clk 00:03:37]} {[%emt
00:01:39]} Rc8 {[%clk 00:05:37]} {[%emt 00:00:20]} 26. Qb2 {[%clk 00:03:43]}
{[%emt 00:00:26]} e4 {[%clk 00:04:56]} {[%emt 00:01:09]} 27. Qxf6 {[%clk
00:01:41]} {[%emt 00:02:33]} gxf6 {[%clk 00:05:15]} {[%emt 00:00:11]} 28. Nd4
{[%clk 00:01:42]} {[%emt 00:00:29]} Bxe2 {[%clk 00:04:58]} {[%emt 00:00:47]} 29.
Rxe2 {[%clk 00:01:09]} {[%emt 00:01:03]} Nxd4 {[%clk 00:04:20]} {[%emt
00:01:09]} 30. exd4 {[%clk 00:01:34]} {[%emt 00:00:05]} Rc1+ {[%clk 00:04:44]}
{[%emt 00:00:05]} 31. Kh2 {[%clk 00:01:58]} {[%emt 00:00:05]} f5 {[%clk
00:02:45]} {[%emt 00:02:30]} 32. b5 {[%clk 00:01:41]} {[%emt 00:00:47]} axb5
{[%clk 00:02:50]} {[%emt 00:00:25]} 33. axb5 {[%clk 00:02:07]} {[%emt
00:00:04]} Rb1 {[%clk 00:02:17]} {[%emt 00:01:03]} 34. g4 {[%clk 00:02:08]}
{[%emt 00:00:29]} Rxb5 {[%clk 00:01:50]} {[%emt 00:00:57]} 35. gxf5 {[%clk
00:02:10]} {[%emt 00:00:28]} Rxf5 {[%clk 00:02:07]} {[%emt 00:00:13]} 36. Rxe4
{[%clk 00:01:12]} {[%emt 00:01:29]} Rxf2 {[%clk 00:02:28]} {[%emt 00:00:07]} 37.
d5 {[%clk 00:00:41]} {[%emt 00:01:02]} Rd2 {[%clk 00:00:43]} {[%emt 00:02:15]}
38. Rb4 {[%clk 00:00:54]} {[%emt 00:00:16]} Rxd5 {[%clk 00:01:03]} {[%emt
00:00:10]} 39. Rxb7 {[%clk 00:01:16]} {[%emt 00:00:09]} Rd3 {[%clk 00:00:49]}
{[%emt 00:00:43]} 40. Rb6 {[%clk 00:01:27]} {[%emt 00:00:20]} Kg7 {[%clk
00:01:10]} {[%emt 00:00:08]} 41. Ra6 {[%clk 00:01:49]} {[%emt 00:00:09]} Re3
{[%clk 00:01:00]} {[%emt 00:00:39]} 42. Rb6 {[%clk 00:02:10]} {[%emt 00:00:09]}
Re6 {[%clk 00:01:22]} {[%emt 00:00:08]} 43. Rb5 {[%clk 00:02:34]} {[%emt
00:00:06]} Kg6 {[%clk 00:01:44]} {[%emt 00:00:08]} 44. g3 {[%clk 00:01:55]}
{[%emt 00:01:10]} Rf6 {[%clk 00:01:53]} {[%emt 00:00:20]} 45. Kg2 {[%clk
00:02:08]} {[%emt 00:00:17]} Rf5 {[%clk 00:02:16]} {[%emt 00:00:07]} 46. Rb4
{[%clk 00:02:30]} {[%emt 00:00:09]} Kg5 {[%clk 00:02:15]} {[%emt 00:00:30]} 47.
Ra4 {[%clk 00:02:42]} {[%emt 00:00:19]} Rb5 {[%clk 00:02:31]} {[%emt 00:00:12]}
48. Rc4 {[%clk 00:02:44]} {[%emt 00:00:30]} Rb2+ {[%clk 00:01:21]} {[%emt
00:01:39]} 49. Kf3 {[%clk 00:02:47]} {[%emt 00:00:28]} h5 {[%emt 00:00:36]} 50.
Ra4 {[%clk 00:02:47]} {[%emt 00:00:17]} Rb3+ {[%clk 00:01:41]} {[%emt
00:00:17]} 51. Kg2 {[%clk 00:03:07]} {[%emt 00:00:09]} Rb5 {[%clk 00:01:56]}
{[%emt 00:00:15]} 52. Rc4 {[%clk 00:03:26]} {[%emt 00:00:12]} Rf5 {[%clk
00:02:36]} {[%emt 00:00:28]} 53. Ra4 {[%clk 00:03:52]} Kg6 {[%clk 00:02:36]} 54.
Ra6+ {[%clk 00:03:52]} {[%emt 00:00:26]} f6 {[%emt 00:01:13]} 55. Ra4 Rb5
{[%clk 00:02:47]} {[%emt 00:00:17]} 56. Kf3 {[%clk 00:03:58]} {[%emt 00:00:13]}
Rb2 {[%emt 00:01:00]} 57. Ra5 {[%clk 00:04:04]} {[%emt 00:00:05]} Rb1 {[%clk
00:02:13]} {[%emt 00:00:53]} 58. Rc5 {[%clk 00:04:03]} {[%emt 00:00:30]} Rf1+
{[%clk 00:02:37]} {[%emt 00:00:06]} 59. Kg2 {[%clk 00:04:28]} {[%emt 00:00:06]}
Rf5 {[%emt 00:00:37]} 60. Rc4 {[%clk 00:04:15]} {[%emt 00:00:13]} Kg5 {[%clk
00:03:17]} 61. Rb4 {[%clk 00:04:01]} {[%emt 00:00:57]} Rd5 {[%emt 00:00:55]} 62.
Ra4 {[%clk 00:04:11]} {[%emt 00:00:04]} Rd8 {[%clk 00:03:45]} {[%emt 00:00:31]}
63. Rb4 Rh8 {[%emt 00:00:47]} 64. Rb5+ {[%clk 00:04:14]} {[%emt 00:00:02]} f5
{[%clk 00:04:05]} {[%emt 00:00:09]} 65. Rb4 {[%emt 00:00:52]} Re8 {[%emt
00:00:24]} 66. Kf3 {[%emt 00:00:47]} Re4 {[%clk 00:03:43]} {[%emt 00:00:03]} 67.
Rb8 {[%clk 00:04:49]} {[%emt 00:00:12]} Re6 {[%clk 00:03:41]} {[%emt 00:00:31]}
68. Rb4 {[%clk 00:05:05]} {[%emt 00:00:15]} Ra6 {[%clk 00:03:47]} {[%emt
00:00:23]} 69. Rc4 {[%clk 00:05:23]} {[%emt 00:00:13]} Ra3+ {[%clk 00:04:11]}
{[%emt 00:00:05]} 70. Kg2 {[%emt 00:00:13]} Re3 {[%emt 00:00:25]} 71. Rc8
{[%emt 00:04:59]} Re6 {[%clk 00:30:18]} {[%emt 00:00:29]} 72. Kf3 {[%emt
00:00:34]} Rg6 {[%emt 00:01:14]} 73. Ra8 {[%emt 00:00:18]} Rg7 {[%clk
00:30:01]} {[%emt 00:00:40]} 74. Rb8 {[%clk 00:34:55]} {[%emt 00:00:16]} Re7
{[%clk 00:28:54]} {[%emt 00:01:35]} 75. Rg8+ {[%clk 00:35:14]} {[%emt
00:00:13]} Kf6 {[%emt 00:00:51]} 76. Rf8+ {[%emt 00:00:33]} Kg6 {[%emt
00:00:11]} 77. Rg8+ {[%emt 00:00:09]} Rg7 {[%clk 00:29:34]} 78. Rb8 {[%clk
00:35:28]} {[%emt 00:00:22]} Kg5 {[%clk 00:29:14]} {[%emt 00:00:50]} 79. Ra8
{[%clk 00:35:48]} {[%emt 00:00:09]} Rg6 {[%clk 00:29:28]} {[%emt 00:00:16]}
1/2-1/2